bitfinex/quotes_ETHUSD_20240715
["timestamp","ask_amount","ask_price","bid_price","bid_amount"]
[1721008661905,1.05538584,3282.4,3282.1,2.74213]
[1721008662136,1.05538584,3282.3,3282.1,2.74213]
[1721008662639,0.31913884,3282.5,3282.1,2.74213]
[1721008662823,1.05538561,3282.4,3282.1,2.74213]
[1721008663023,1.05538561,3282.3,3282.1,2.74213]
[1721008663224,1.05538561,3282.4,3281.9,2.3391]
[1721008663440,1.05538561,3282.4,3282.0,2.74222]
[1721008663748,1.05538561,3282.4,3282.1,2.74214]
[1721008663905,0.31913884,3282.5,3282.1,2.74214]
[1721008664105,1.05538512,3282.4,3282.1,2.74214]
[1721008664401,1.05538512,3282.3,3282.1,2.74214]
[1721008664624,0.31913884,3282.5,3282.1,2.74214]
[1721008664848,1.05537912,3282.4,3282.1,2.74214]
[1721008665107,1.05537912,3282.3,3282.1,2.74214]
[1721008665332,0.79735675,3282.5,3282.1,2.74214]
[1721008665533,1.05538353,3282.4,3282.1,2.74214]
[1721008665731,1.05538353,3282.3,3282.1,2.74214]
[1721008665922,0.79735675,3282.5,3282.1,2.74214]
[1721008666132,1.05538335,3282.4,3282.1,2.74214]
[1721008666335,1.05538335,3282.3,3282.1,2.74214]
[1721008666512,1.05538298,3282.2,3282.1,2.74214]
[1721008666702,0.79735675,3282.5,3282.1,2.74214]
[1721008666908,1.05538244,3282.4,3282.1,2.74214]
[1721008667248,0.79735675,3282.5,3282.1,2.74214]
[1721008667422,1.05537698,3282.4,3282.1,2.74214]
[1721008667621,1.05537698,3282.3,3282.1,2.74214]
[1721008667823,1.05537698,3282.4,3282.1,2.74214]
[1721008668144,1.05537698,3282.3,3282.1,2.74214]
[1721008668341,1.05537698,3282.4,3282.1,2.74214]
[1721008670546,0.31913884,3282.5,3282.1,2.74214]
[1721008670748,0.31913884,3282.5,3282.2,2.74206]
[1721008670749,1.05537905,3282.4,3282.2,2.74206]
[1721008670934,1.05537905,3282.3,3282.2,2.74206]
[1721008671613,1.05537905,3282.3,3282.2,5.48412]
[1721008672448,1.05537905,3282.3,3282.2,2.74206]
[1721008672661,1.05537905,3282.3,3282.0,2.74219]
[1721008672980,1.05537905,3282.2,3281.9,2.7423]
[1721008673104,2.69233884,3282.5,3281.6,12.48591]
[1721008673105,2.47278786,3282.4,3281.6,12.48591]
[1721008673309,1.05537905,3282.3,3281.6,7.43]
[1721008673605,1.14817953,3282.2,3281.6,7.43]
[1721008673813,1.27588561,3282.1,3281.6,7.43]
[1721008674035,1.05552975,3282.0,3281.6,7.43]
[1721008674419,1.05552975,3281.9,3281.6,7.43]
[1721008674623,1.05552975,3282.1,3281.6,10.17255]
[1721008677112,0.07617953,3282.2,3281.6,10.17255]
[1721008677317,1.05553211,3282.1,3281.6,10.17255]
[1721008677516,0.38490987,3282.2,3281.6,10.17255]
[1721008677725,1.05553227,3282.1,3281.6,10.17255]
[1721008677942,1.05553227,3282.0,3281.6,10.17255]
[1721008678115,1.05553227,3282.1,3281.6,10.17255]
[1721008678327,1.05553227,3282.0,3281.6,2.74255]
[1721008678527,1.05553227,3281.9,3281.6,2.74255]
[1721008678855,1.05553227,3281.8,3281.6,2.74255]
[1721008679030,1.05553227,3281.7,3281.6,2.74255]
[1721008680251,1.05553227,3281.7,3281.4,2.74269]
[1721008680493,1.05556212,3281.6,3281.4,2.74269]
[1721008680647,1.05556212,3281.5,3281.4,2.74269]
[1721008681179,1.05556212,3281.9,3281.4,2.74269]
[1721008683115,1.05557702,3281.8,3281.4,2.74269]
[1721008683258,1.05557702,3281.7,3281.2,2.74287]
[1721008683453,2.2708,3282.0,3281.2,2.74287]
[1721008683454,1.05557702,3281.9,3281.2,2.74287]
[1721008683755,1.65201101,3281.9,3281.2,2.74287]
[1721008683977,1.05557702,3281.8,3281.2,2.74287]
[1721008685298,1.05557702,3282.0,3281.6,2.74252]
[1721008685591,1.05557702,3282.0,3281.7,2.74246]
[1721008685785,1.05557702,3282.0,3281.6,2.74252]
[1721008686181,0.31917478,3282.1,3281.6,2.74252]
[1721008686381,1.05551643,3281.9,3281.6,2.74252]
[1721008686562,1.05551643,3281.8,3281.6,2.74252]
[1721008686764,1.05551643,3282.0,3281.5,5.14024]
[1721008688974,1.05551643,3282.0,3281.6,2.74255]
[1721008689484,1.05550757,3281.9,3281.6,2.74255]
[1721008689685,1.05550757,3281.8,3281.6,2.74255]
[1721008689881,1.05550757,3281.7,3281.6,2.74255]
[1721008690194,0.31917478,3282.1,3281.6,2.74255]
[1721008690195,1.05550757,3282.0,3281.6,2.74255]
[1721008690397,1.05550757,3281.9,3281.6,2.74255]
[1721008690600,1.05550757,3282.0,3281.6,2.74255]
[1721008690893,1.05550757,3282.0,3281.7,2.74247]
[1721008692871,1.05550787,3281.9,3281.7,2.74247]
[1721008693191,1.05550787,3281.8,3281.7,2.74247]
[1721008694275,1.05550787,3281.8,3281.5,5.14018]
[1721008694592,1.05550787,3281.7,3281.5,5.14018]
[1721008694785,1.05550787,3282.0,3281.5,5.14018]
[1721008695216,1.38372759,3282.0,3281.5,5.14018]
[1721008695378,1.05550787,3281.9,3281.5,5.14018]
[1721008696084,0.32821972,3282.0,3281.5,5.14018]
[1721008696278,1.05558154,3281.9,3281.5,5.14018]
[1721008696484,1.05558154,3281.8,3281.1,2.3193]
[1721008696683,1.05558154,3281.8,3280.6,3.0]
[1721008696684,2.4121,3281.6,3280.8,8.06252]
[1721008696889,1.05558154,3281.5,3280.9,1.072]
[1721008697099,1.05558154,3281.5,3280.9,3.81514]
[1721008698601,1.05558154,3281.5,3280.9,1.072]
[1721008699112,0.07619653,3281.4,3280.7,11.24531]
[1721008699318,0.38744281,3281.3,3280.7,3.81531]
[1721008699612,0.07619725,3281.2,3280.7,3.81531]
[1721008699781,1.05572769,3281.1,3280.7,3.81531]
[1721008699979,1.05572769,3281.2,3280.9,1.072]
[1721008700184,1.05572769,3281.7,3281.4,2.74269]
[1721008700503,1.05572769,3281.6,3281.5,1.072]
[1721008700709,1.05572769,3281.6,3281.3,1.072]
[1721008700889,1.05572769,3281.5,3281.2,2.74283]
[1721008701103,1.05572769,3281.4,3281.3,2.74281]
[1721008701779,1.05572769,3281.4,3281.1,3.81495]
[1721008701986,1.05572769,3281.3,3281.1,2.74295]
[1721008702183,1.05572769,3281.2,3281.1,2.74295]
[1721008702576,2.3236,3281.7,3281.0,5.11906]
[1721008702769,1.59419906,3281.6,3281.0,5.11906]
[1721008702973,0.53852028,3281.6,3281.0,5.11906]
[1721008703274,1.05569591,3281.5,3281.0,5.11906]
[1721008703575,1.05569591,3281.4,3281.0,5.11906]
[1721008703777,1.05569591,3281.5,3281.0,5.11906]
[1721008705385,0.53852028,3281.6,3281.0,5.11906]
[1721008705615,1.05570154,3281.5,3281.0,5.11906]
[1721008705803,0.53852028,3281.6,3281.0,5.11906]
[1721008705986,1.05570082,3281.5,3281.2,2.74289]
[1721008706192,1.05570082,3281.4,3281.3,2.74274]
[1721008710419,1.05570082,3281.4,3281.3,5.48555]
[1721008710642,1.05570082,3281.4,3281.3,7.93265]
[1721008711726,0.31920278,3281.8,3281.5,2.7426]
[1721008711884,1.05558688,3281.7,3281.5,2.7426]
[1721008712227,1.05558688,3281.6,3281.5,2.7426]
[1721008712583,0.31920278,3281.8,3281.5,2.7426]
[1721008712792,1.05556695,3281.7,3281.5,2.7426]
[1721008712995,1.05556695,3281.6,3281.5,2.7426]
[1721008713212,1.05556695,3281.7,3281.5,2.7426]
[1721008715100,1.05556695,3281.7,3281.3,5.18984]
[1721008715498,1.05556695,3281.7,3281.1,2.74296]
[1721008715694,0.37844697,3281.6,3281.1,2.74296]
[1721008716035,2.72890278,3281.8,3281.1,2.74296]
[1721008716315,1.05564923,3281.7,3281.5,2.74262]
[1721008716620,0.31920278,3281.8,3281.6,2.74256]
[1721008716942,1.05557823,3281.7,3281.6,2.74256]
[1721008719336,1.05558114,3281.7,3281.6,2.74256]
[1721008722723,1.05557776,3281.7,3281.6,2.74256]
[1721008724820,0.31920278,3281.8,3281.6,2.74256]
[1721008725027,1.05557694,3281.7,3281.6,2.74256]
[1721008726045,1.05556721,3281.7,3281.6,2.74256]
[1721008726435,0.31920278,3281.8,3281.6,2.74256]
[1721008726610,1.05557005,3281.7,3281.6,2.74256]
[1721008729118,0.31920278,3281.8,3281.6,2.74256]
[1721008729445,0.31920278,3281.8,3281.7,2.74248]
[1721008729619,1.37476778,3281.8,3281.7,2.74248]
[1721008731213,1.85305723,3281.8,3281.7,2.74248]
[1721008732648,1.85307267,3281.8,3281.7,2.74248]
[1721008735949,0.79749223,3281.8,3281.7,2.74248]
[1721008736765,1.85306301,3281.8,3281.7,2.74248]
[1721008739375,0.79749223,3281.8,3281.7,2.74248]
[1721008739732,1.85305772,3281.8,3281.7,2.74248]
[1721008741732,1.85305772,3281.8,3281.7,7.105464]
[1721008741936,0.79749223,3281.8,3281.7,12.524264]
[1721008742141,0.47828945,3281.8,3281.7,12.524264]
[1721008742360,1.90862674,3282.8,3282.3,2.7419]
[1721008742565,4.5039312,3283.1,3282.3,2.7419]
[1721008742566,0.31913802,3282.4,3282.3,2.7419]
[1721008742741,1.37444674,3282.4,3282.3,2.7419]
[1721008743737,2.2772,3282.3,3281.2,2.4188]
[1721008743964,1.072,3282.0,3281.1,2.74292]
[1721008744155,1.072,3282.0,3281.0,2.4188]
[1721008744156,1.072,3281.8,3281.0,2.4188]
[1721008744470,3.3492,3281.6,3280.8,2.74323]
[1721008744640,1.3603796,3281.5,3280.8,3.81523]
[1721008744845,1.05530872,3281.4,3280.8,3.81523]
[1721008745049,2.2772,3281.6,3280.8,3.81523]
[1721008745248,1.05575543,3281.3,3280.8,3.81523]
[1721008745572,4.18449263,3281.6,3280.8,3.81523]
[1721008745573,1.05578211,3281.2,3280.8,2.74323]
[1721008745872,1.05578211,3281.1,3280.8,2.74323]
[1721008746084,1.05578211,3281.4,3280.8,2.74323]
[1721008746254,1.05578211,3281.3,3280.8,2.74323]
[1721008746442,1.05578211,3281.2,3280.8,2.74323]
[1721008746779,1.05578211,3281.1,3280.8,2.74323]
[1721008746974,1.05578211,3281.4,3280.8,2.74323]
[1721008747184,1.05578211,3281.3,3280.8,2.74323]
[1721008747338,1.05578211,3281.2,3280.8,2.74323]
[1721008747695,1.05578211,3281.1,3280.8,2.74323]
[1721008747866,1.05578211,3281.0,3280.8,2.74323]
[1721008748206,1.01176709,3281.5,3280.8,2.74323]
[1721008748207,1.05578211,3280.9,3280.8,2.74323]
[1721008748375,1.05577619,3280.9,3280.8,2.74323]
[1721008749573,1.05578232,3280.9,3280.8,2.74323]
[1721008749977,1.05578232,3280.9,3280.6,2.74339]
[1721008750179,0.07620332,3280.8,3280.3,7.43]
[1721008750356,0.07620332,3280.8,3280.1,2.74375]
[1721008750357,1.05578232,3280.8,3280.1,2.74375]
[1721008751561,1.05596617,3280.7,3280.2,2.74372]
[1721008751781,2.2856,3281.0,3280.2,2.74372]
[1721008751782,1.05596617,3280.6,3280.2,2.74372]
[1721008752096,2.2856,3281.0,3280.2,2.74372]
[1721008752243,1.0559554,3280.9,3280.3,2.74364]
[1721008752441,1.0559554,3280.8,3280.3,2.74364]
[1721008752640,1.0559554,3280.7,3280.3,2.74364]
[1721008752949,2.2856,3281.0,3280.3,2.74364]
[1721008753182,1.05595053,3280.9,3280.3,2.74364]
[1721008753368,1.05595053,3280.8,3280.4,2.74355]
[1721008753569,1.05595053,3280.9,3280.4,2.74355]
[1721008753749,1.05595053,3280.8,3280.4,2.74355]
[1721008753949,2.2856,3281.0,3280.4,2.74355]
[1721008754247,1.0558927,3280.9,3280.4,2.74355]
[1721008754493,1.0558927,3280.8,3280.4,2.74355]
[1721008754689,1.39004197,3280.8,3280.2,2.74371]
[1721008754861,1.0558927,3280.7,3280.2,2.74371]
[1721008757806,0.31924742,3280.6,3280.2,2.74371]
[1721008760268,0.31924742,3280.6,3280.1,2.74377]
[1721008760472,0.31924742,3280.6,3280.2,2.74371]
[1721008763113,0.31924742,3280.6,3280.2,3.521268]
[1721008764380,0.31924742,3280.6,3280.2,2.74371]
[1721008765199,0.31924742,3280.6,3280.3,2.74363]
[1721008766011,0.31924742,3280.6,3280.4,2.74356]
[1721008766539,0.31924742,3280.6,3280.5,2.74348]
[1721008767706,0.31924742,3280.6,3280.5,5.14908]
[1721008767904,0.31924742,3280.6,3280.5,14.700948]
[1721008768110,1.90233767,3282.1,3281.3,2.74278]
[1721008768111,2.4341,3282.1,3281.3,2.74278]
[1721008768586,1.3747731,3282.0,3281.3,2.74278]
[1721008768786,1.05557567,3281.9,3281.4,2.7427]
[1721008769928,1.05557567,3281.9,3281.5,2.74264]
[1721008770083,1.05557567,3281.9,3281.6,2.74255]
[1721008770287,1.05557567,3281.9,3281.7,2.74247]
[1721008770931,0.31919743,3282.0,3281.7,2.74247]
[1721008771435,1.05548409,3281.9,3281.7,2.74247]
[1721008771726,0.31919743,3282.0,3281.7,2.74247]
[1721008772300,1.05547309,3281.9,3281.7,2.74247]
[1721008772595,0.31919743,3282.0,3281.7,2.74247]
[1721008773194,1.05547523,3281.9,3281.7,2.74247]
[1721008773382,1.05547523,3281.8,3281.7,2.74247]
[1721008774520,0.31919743,3282.0,3281.7,2.74247]
[1721008774822,1.05552645,3281.9,3281.7,2.74247]
[1721008774994,1.05552645,3281.8,3281.7,2.74247]
[1721008775321,0.31919743,3282.0,3281.7,2.74247]
[1721008775499,1.05551253,3281.9,3281.7,2.74247]
[1721008775695,0.31919743,3282.0,3281.7,2.74247]
[1721008776019,1.05552027,3281.9,3281.7,2.74247]
[1721008776220,1.05552027,3281.8,3281.7,2.74247]
[1721008776724,1.05552027,3281.9,3281.7,2.74247]
[1721008781407,0.31919743,3282.0,3281.7,2.74247]
[1721008781638,1.05556199,3281.9,3281.7,2.74247]
[1721008781799,1.05556199,3281.8,3281.7,2.74247]
[1721008782004,1.05556199,3281.9,3281.7,2.74247]
[1721008782508,1.05556199,3281.9,3281.5,2.74264]
[1721008782509,1.05556199,3281.9,3281.8,2.74239]
[1721008783046,0.31919743,3282.0,3281.8,5.48478]
[1721008783207,0.31919743,3282.0,3281.9,2.74231]
[1721008784039,0.31919743,3282.0,3281.9,5.48462]
[1721008785552,0.31919743,3282.0,3281.9,6.266912]
[1721008789925,0.31919743,3282.0,3281.9,5.48462]
[1721008801194,1.37458083,3282.0,3281.9,5.48462]
[1721008801353,0.31919743,3282.0,3281.9,5.48462]
[1721008803100,0.16147743,3282.0,3281.9,8.22693]
[1721008803331,0.47819012,3282.3,3282.2,5.48412]
[1721008803454,1.37580842,3282.3,3282.2,5.48412]
[1721008803650,1.37580737,3282.3,3282.2,5.48412]
[1721008803854,1.05533725,3282.3,3282.2,5.48412]
[1721008804266,1.05533725,3282.3,3282.2,6.413951]
[1721008804684,0.47818942,3282.7,3282.6,2.74172]
[1721008805406,1.53343243,3282.7,3282.6,2.74172]
[1721008806888,0.47818942,3282.7,3282.6,2.74172]
[1721008807295,1.53343567,3282.7,3282.6,2.74172]
[1721008808213,4.01093567,3282.7,3282.6,2.74172]
[1721008808884,4.44394208,3282.7,3282.2,2.74203]
[1721008809116,4.60474625,3282.6,3281.9,2.74225]
[1721008809414,3.4038,3282.4,3281.4,5.405]
[1721008809719,1.13142463,3282.3,3281.5,1.072]
[1721008809904,1.13142463,3282.2,3281.5,1.072]
[1721008810079,1.05524625,3282.1,3281.5,1.072]
[1721008810281,1.05555342,3282.0,3281.8,2.74237]
[1721008810495,0.07617838,3282.2,3281.8,2.74237]
[1721008810496,1.05555342,3281.9,3281.8,2.74237]
[1721008813413,2.40797797,3282.4,3281.8,2.74237]
[1721008813414,4.31520899,3282.4,3281.8,2.74237]
[1721008813616,1.05554518,3281.9,3281.8,2.74237]
[1721008813917,1.0555403,3281.9,3281.8,2.74237]
[1721008815111,3.3195403,3281.9,3281.6,5.48505]
[1721008815305,1.0555403,3281.8,3281.4,2.7427]
[1721008816324,1.05562117,3281.7,3281.4,2.7427]
[1721008816733,1.05558403,3281.6,3281.4,2.7427]
[1721008816883,2.264,3281.9,3281.4,4.470458]
[1721008817215,1.05555669,3281.8,3281.6,2.74251]
[1721008817389,1.05555669,3281.7,3281.6,2.74251]
[1721008817588,1.05555669,3282.1,3281.6,2.74251]
[1721008817921,1.05555669,3282.0,3281.7,2.74247]
[1721008818096,0.31916826,3282.0,3281.7,2.74247]
[1721008818413,1.05555669,3281.9,3281.7,2.74247]
[1721008818620,1.05555669,3281.8,3281.7,2.74247]
[1721008819990,0.31916826,3282.0,3281.7,2.74247]
[1721008820213,1.05555729,3281.9,3281.7,2.74247]
[1721008820523,1.05555729,3281.8,3281.7,2.74247]
[1721008823390,1.05556968,3281.8,3281.7,2.74247]
[1721008824231,1.05556968,3281.8,3281.3,2.74278]
[1721008824386,3.35416968,3281.7,3281.3,2.74278]
[1721008824590,1.13175527,3281.6,3280.8,2.74323]
[1721008824831,3.35416968,3281.5,3280.8,2.74323]
[1721008825126,2.20376664,3281.4,3280.8,2.74323]
[1721008825425,1.05556968,3281.3,3280.6,2.74337]
[1721008825636,0.22037666,3281.2,3280.6,2.74337]
[1721008825784,1.05556968,3281.1,3280.4,2.7435]
[1721008826229,1.05556968,3281.0,3280.4,2.7435]
[1721008826385,1.05586593,3280.9,3280.4,2.7435]
[1721008826590,2.74283,3281.3,3280.6,2.74339]
[1721008826893,1.43734815,3281.2,3280.6,2.74339]
[1721008827098,1.05586515,3281.1,3280.6,2.74339]
[1721008827505,1.05586515,3281.1,3280.4,2.7435]
[1721008827823,0.07620398,3281.0,3280.5,2.74347]
[1721008828035,1.05586515,3280.9,3280.3,2.74357]
[1721008828889,1.05586515,3280.9,3280.4,2.74354]
[1721008829723,2.4955,3281.0,3280.4,2.74354]
[1721008830038,1.05589441,3280.9,3280.4,2.74354]
[1721008830324,2.4955,3281.0,3280.4,2.74354]
[1721008830515,1.05591293,3280.9,3280.4,2.74354]
[1721008830830,2.4955,3281.0,3280.4,2.74354]
[1721008831023,1.0559,3280.9,3280.4,2.74354]
[1721008831226,2.4955,3281.0,3280.4,2.74354]
[1721008831434,2.2663,3281.3,3280.4,3.292264]
[1721008831603,1.05586166,3281.2,3280.5,2.74341]
[1721008831810,1.05586166,3281.1,3280.5,2.74341]
[1721008832129,2.2663,3281.3,3280.6,2.74338]
[1721008833350,0.31923735,3281.2,3280.6,2.74338]
[1721008834094,1.37513576,3281.2,3280.6,2.74338]
[1721008834410,1.37513576,3281.2,3280.7,2.74328]
[1721008835227,1.0558596,3281.1,3280.8,2.74315]
[1721008835843,0.31923735,3281.2,3280.8,2.74315]
[1721008836005,1.05584542,3281.0,3280.8,2.74315]
[1721008836393,1.05584542,3281.0,3280.7,2.74328]
[1721008836608,1.05584542,3281.0,3280.1,3.0]
[1721008836932,1.05584542,3281.0,3280.2,0.53464]
[1721008837142,1.05584542,3281.0,3280.0,2.3464]
[1721008837621,2.38780598,3280.9,3280.0,2.3464]
[1721008838357,2.3116,3280.9,3280.0,2.3464]
[1721008838727,2.3116,3280.9,3279.7,2.4128]
[1721008838924,1.05597224,3280.8,3279.7,2.4128]
[1721008839127,1.05597224,3280.7,3279.8,0.54128]
[1721008839340,1.05597224,3280.8,3279.8,3.54128]
[1721008839544,1.05597224,3280.7,3279.8,3.54128]
[1721008839840,2.3116,3280.9,3279.8,3.54128]
[1721008839841,1.05597224,3280.6,3279.8,3.54128]
[1721008840147,2.3116,3280.9,3279.8,3.54128]
[1721008840309,1.05596721,3280.8,3279.9,0.595408]
[1721008840513,1.05596721,3280.7,3279.9,0.595408]
[1721008840707,2.3116,3280.9,3279.9,0.595408]
[1721008840910,1.05595052,3280.8,3279.9,0.595408]
[1721008841248,1.05595052,3280.7,3279.9,0.595408]
[1721008841402,1.05595052,3280.8,3280.0,0.3595408]
[1721008842051,1.055973,3280.7,3280.0,0.3595408]
[1721008842237,2.3116,3280.9,3280.0,0.3595408]
[1721008842408,2.3116,3280.9,3279.9,0.595408]
[1721008842612,1.05597721,3280.8,3279.9,0.595408]
[1721008842805,1.05597721,3280.7,3279.9,0.595408]
[1721008843041,2.3116,3280.9,3279.9,0.595408]
[1721008843241,1.05597673,3280.8,3279.9,0.595408]
[1721008843445,1.05597673,3280.7,3280.0,0.3595408]
[1721008843755,2.65593735,3281.2,3280.1,2.3869]
[1721008843909,1.05595524,3281.1,3280.1,2.3869]
[1721008844246,1.05595524,3281.0,3280.1,2.3869]
[1721008844448,1.05595524,3280.9,3280.1,2.3869]
[1721008844612,1.32154898,3281.1,3280.1,2.72108488]
[1721008844815,1.05597166,3281.0,3280.1,2.72108488]
[1721008845119,1.05597166,3280.9,3280.1,2.72108488]
[1721008845318,0.26559374,3281.1,3280.1,2.72108488]
[1721008845516,1.05596876,3281.0,3280.1,2.72108488]
[1721008845742,1.05596876,3280.9,3280.1,2.72108488]
[1721008845927,1.05596876,3281.0,3280.1,2.72108488]
[1721008846130,1.05596876,3280.9,3280.1,2.3869]
[1721008846450,1.05596876,3281.0,3280.1,2.3869]
[1721008846629,1.05596876,3280.9,3280.1,2.3869]
[1721008846822,1.05596876,3280.8,3280.1,2.3869]
[1721008847026,1.05596876,3281.0,3280.1,2.3869]
[1721008847332,0.26559374,3281.1,3280.1,2.66154408]
[1721008847333,1.05596876,3280.9,3280.1,2.66154408]
[1721008847533,1.05596876,3280.8,3280.1,2.66154408]
[1721008847737,1.05596876,3281.0,3280.1,2.66154408]
[1721008847948,1.05596876,3280.9,3280.1,2.66154408]
[1721008848158,1.05596876,3280.8,3280.1,2.66154408]
[1721008848450,1.05596876,3280.7,3280.2,0.30210849]
[1721008848620,1.05596876,3280.6,3280.2,0.30210849]
[1721008848813,1.05596876,3281.0,3280.2,0.30210849]
[1721008849021,1.05596767,3280.9,3280.1,2.3869]
[1721008849325,1.05596767,3280.8,3280.1,2.3869]
[1721008849529,1.05596767,3280.7,3280.1,2.3869]
[1721008849735,1.05596767,3281.0,3280.1,2.3869]
[1721008851655,1.073,3280.7,3279.8,5.3618]
[1721008851861,1.05596767,3280.6,3279.8,2.3618]
[1721008852153,1.073,3280.5,3279.8,2.3618]
[1721008852321,1.073,3280.3,3279.3,2.2715]
[1721008852659,3.5159,3279.9,3278.6,2.2715]
[1721008852816,3.5159,3279.9,3278.8,1.073]
[1721008852817,1.05610928,3279.8,3278.8,1.073]
[1721008854360,1.05610928,3279.8,3278.7,3.0]
[1721008854653,1.05636815,3279.7,3278.7,0.53888222]
[1721008854844,1.05636815,3279.6,3278.7,3.0]
[1721008855044,1.05636815,3279.5,3278.6,2.2715]
[1721008855223,1.05636815,3279.4,3278.6,2.2715]
[1721008855559,2.4429,3279.9,3278.6,2.2715]
[1721008855722,1.05625927,3279.8,3278.7,0.23888222]
[1721008855920,1.05625927,3279.7,3278.7,3.23888222]
[1721008856120,1.05625927,3279.6,3278.7,3.23888222]
[1721008856323,1.05625927,3279.8,3278.7,3.23888222]
[1721008856958,2.338,3280.2,3278.8,2.3053]
[1721008857163,1.05625927,3280.1,3278.8,5.85971822]
[1721008858758,2.338,3280.2,3278.8,5.85971822]
[1721008858933,1.05629296,3280.0,3278.8,5.85971822]
[1721008859141,1.05629296,3279.9,3278.8,5.85971822]
[1721008859335,1.05629296,3280.1,3278.9,0.60986004]
[1721008859654,1.05629296,3280.0,3278.9,3.60986004]
[1721008859963,1.05629296,3279.9,3279.0,2.2704]
[1721008860167,2.3616,3280.4,3279.0,5.2704]
[1721008860329,1.05620289,3280.3,3279.2,2.2704]
[1721008860533,1.05620289,3280.2,3279.2,2.2704]
[1721008860834,3.0,3280.6,3279.2,2.2704]
[1721008860835,1.05620289,3280.1,3279.2,2.2704]
[1721008861034,1.05620289,3280.0,3279.2,2.2704]
[1721008861248,1.05621096,3279.9,3279.2,2.2704]
[1721008861447,1.05621096,3279.8,3279.2,3.1439426]
[1721008861632,1.05621096,3280.5,3279.2,3.1439426]
[1721008861827,4.05621096,3280.6,3279.2,2.2704]
[1721008862033,4.05621096,3280.5,3279.2,2.2704]
[1721008862262,2.3616,3280.7,3279.2,2.2704]
[1721008862263,1.05621096,3280.4,3279.2,2.2704]
[1721008862467,4.05621096,3280.6,3279.2,2.2704]
[1721008862662,1.05621096,3280.5,3279.2,2.2704]
[1721008862969,0.4056211,3280.4,3279.2,2.2704]
[1721008863292,1.05621096,3280.3,3279.2,2.2704]
[1721008864549,1.05630034,3280.2,3279.2,2.2704]
[1721008864757,1.05630034,3280.1,3279.2,2.2704]
[1721008864971,1.05630177,3280.0,3279.2,2.2704]
[1721008865135,1.05630177,3279.9,3279.2,2.2704]
[1721008865334,1.05630177,3279.8,3279.2,2.2704]
[1721008865632,0.4056211,3280.4,3279.2,2.49744]
[1721008865843,1.0562639,3280.3,3279.2,2.2704]
[1721008866071,1.0562639,3280.2,3279.2,2.2704]
[1721008866233,1.0562639,3280.3,3279.2,2.2704]
[1721008867248,1.0562639,3280.3,3279.2,2.49744]
[1721008867444,0.31934769,3280.6,3279.2,2.49744]
[1721008867445,1.0562639,3280.2,3279.2,2.49744]
[1721008867991,0.31934769,3280.6,3279.2,2.49744]
[1721008868174,1.0560925,3280.5,3279.2,2.49744]
[1721008868417,1.0560925,3280.4,3279.4,2.3567]
[1721008868686,1.0560925,3280.3,3279.4,2.3567]
[1721008868889,1.0560925,3280.2,3279.4,2.3567]
[1721008869195,1.0560925,3280.5,3279.4,2.3567]
[1721008869484,1.05609321,3280.4,3279.6,2.3244]
[1721008869692,1.05609321,3280.3,3279.6,2.3244]
[1721008870180,1.05609321,3280.2,3279.6,2.3244]
[1721008870385,0.31934769,3280.6,3279.6,2.3244]
[1721008870699,1.0560859,3280.5,3279.6,2.3244]
[1721008870978,3.09,3281.1,3279.6,2.3244]
[1721008870979,1.0560859,3280.4,3279.8,2.3244]
[1721008871182,1.05606668,3280.3,3279.8,2.3244]
[1721008871381,3.40928771,3281.1,3279.8,2.3244]
[1721008871382,1.05608708,3280.2,3279.8,2.3244]
[1721008871573,0.07621257,3281.0,3279.8,2.3244]
[1721008871753,1.59466652,3280.9,3279.8,2.3244]
[1721008871947,1.13231319,3280.8,3279.8,2.3244]
[1721008872151,1.13231535,3280.7,3279.8,2.3244]
[1721008872449,1.05609986,3280.6,3279.8,2.3244]
[1721008872680,1.05609986,3280.7,3279.8,2.3244]
[1721008872850,1.05609986,3280.6,3279.8,2.3244]
[1721008873052,1.05609986,3280.7,3279.8,2.3244]
[1721008874388,1.05618062,3280.6,3279.8,2.3244]
[1721008874544,1.05618062,3280.5,3279.8,2.3244]
[1721008874750,1.3075773,3280.7,3279.8,2.3244]
[1721008874951,1.05618062,3280.6,3279.8,2.3244]
[1721008875175,1.05618062,3280.5,3279.8,2.3244]
[1721008875375,1.05618062,3280.4,3279.8,2.3244]
[1721008875688,0.25139668,3280.7,3279.8,2.3244]
[1721008876095,5.05046645,3280.6,3279.1,2.3663]
[1721008876390,1.074,3280.3,3279.2,1.074]
[1721008876684,1.074,3280.3,3279.2,4.074]
[1721008877260,1.89918407,3280.6,3280.0,1.074]
[1721008877474,2.2962,3281.4,3279.4,1.834]
[1721008877475,1.89918407,3281.0,3280.3,1.074]
[1721008877703,1.90054307,3281.1,3280.1,3.4403]
[1721008877995,0.0762097,3281.0,3280.1,2.3663]
[1721008878154,2.20551202,3281.0,3280.1,2.3663]
[1721008878354,0.47848787,3280.9,3280.1,2.3663]
[1721008878590,0.23790309,3280.8,3280.1,2.3663]
[1721008879090,0.47848787,3280.9,3280.1,2.3663]
[1721008880955,0.55469996,3280.9,3280.1,2.3663]
[1721008881791,0.31927346,3280.8,3279.6,2.3153]
[1721008883414,0.07621385,3280.7,3279.6,2.3153]
[1721008885527,1.05614526,3280.6,3279.6,2.3153]
[1721008885800,1.05614526,3280.5,3279.6,2.3153]
[1721008886002,1.05614526,3280.6,3279.6,2.3153]
[1721008886225,1.13236489,3280.5,3279.6,2.3153]
[1721008886498,1.05614526,3280.4,3279.6,2.3153]
[1721008886662,1.32955261,3280.6,3279.6,2.3153]
[1721008886863,1.05614526,3280.5,3279.6,2.3153]
[1721008887497,0.27340735,3280.6,3279.6,2.3153]
[1721008887674,1.05619034,3280.5,3279.6,2.3153]
[1721008887875,1.05616568,3280.4,3279.6,2.3153]
[1721008888088,1.05616568,3280.3,3279.6,2.3153]
[1721008888278,1.05616568,3280.2,3279.6,2.3153]
[1721008888602,1.05616568,3280.1,3279.6,2.3153]
[1721008888906,1.05616568,3280.0,3279.6,2.3153]
[1721008889199,1.05616568,3279.9,3279.6,2.3153]
[1721008889401,1.05616568,3280.4,3279.6,2.3153]
[1721008889564,1.05616568,3280.3,3279.6,2.3153]
[1721008890267,1.05620602,3280.2,3279.6,2.3153]